[Event "MČR juniorů a juniorek v rapid šachu 2024"]
[Site "Hotel Fit Fun, Harrachov, Czech Republic"]
[Date "2024.09.21"]
[Round "6.2"]
[White "Hak David"]
[Black "Rybackova Lucie"]
[Result "1-0"]
[TimeControl "20+5"]
[WhiteFideId "377007"]
[BlackFideId "23739207"]
[WhiteElo "2103"]
[BlackElo "1933"]

1. d4 {[%clk 00:20:09]} {[%emt 00:24:20]} Nf6 {[%clk 00:20:05]} {[%emt
00:00:05]} 2. c4 {[%clk 00:20:13]} g6 {[%clk 00:20:05]} {[%emt 00:00:06]} 3.
Nc3 {[%clk 00:20:17]} d5 {[%clk 00:20:08]} {[%emt 00:00:01]} 4. Nf3 {[%clk
00:20:21]} Bg7 {[%clk 00:20:11]} {[%emt 00:00:02]} 5. h4 {[%clk 00:20:25]} h5
{[%clk 00:19:39]} {[%emt 00:00:37]} 6. Bg5 {[%clk 00:20:04]} {[%emt 00:00:26]}
c6 {[%clk 00:19:27]} {[%emt 00:00:17]} 7. e3 {[%clk 00:20:01]} {[%emt
00:00:08]} O-O {[%clk 00:19:25]} {[%emt 00:00:07]} 8. Be2 {[%clk 00:20:00]}
{[%emt 00:00:05]} Ne4 {[%clk 00:19:15]} {[%emt 00:00:16]} 9. Nxe4 {[%clk
00:19:57]} {[%emt 00:00:08]} dxe4 {[%clk 00:19:16]} {[%emt 00:00:04]} 10. Nd2
{[%clk 00:19:59]} {[%emt 00:00:03]} Bf5 {[%clk 00:18:23]} {[%emt 00:00:58]} 11.
g4 {[%clk 00:19:52]} {[%emt 00:00:13]} hxg4 {[%clk 00:18:18]} {[%emt 00:00:09]}
12. Bxg4 {[%clk 00:19:52]} {[%emt 00:00:05]} Qd7 {[%clk 00:18:08]} {[%emt
00:00:15]} 13. Bxf5 {[%clk 00:18:21]} {[%emt 00:01:36]} Qxf5 {[%clk 00:18:00]}
{[%emt 00:00:14]} 14. Qc2 {[%clk 00:17:32]} {[%emt 00:00:54]} e5 {[%clk
00:14:46]} {[%emt 00:03:18]} 15. dxe5 {[%clk 00:16:56]} {[%emt 00:00:41]} Qxe5
{[%clk 00:14:33]} {[%emt 00:00:19]} 16. O-O-O {[%clk 00:16:53]} {[%emt
00:00:07]} Na6 {[%clk 00:13:26]} {[%emt 00:01:12]} 17. Bf4 {[%clk 00:15:49]}
{[%emt 00:01:09]} Qa5 {[%clk 00:12:00]} {[%emt 00:01:31]} 18. a3 {[%clk
00:13:11]} {[%emt 00:02:43]} Nc5 {[%clk 00:09:29]} {[%emt 00:02:36]} 19. Nxe4
{[%clk 00:12:26]} {[%emt 00:00:50]} Na4 {[%clk 00:08:51]} {[%emt 00:00:43]} 20.
b4 {[%clk 00:11:54]} {[%emt 00:00:38]} Qa6 {[%clk 00:08:12]} {[%emt 00:00:43]}
21. h5 {[%clk 00:07:01]} {[%emt 00:04:58]} Nc3 {[%clk 00:04:58]} {[%emt
00:03:20]} 22. Nxc3 {[%clk 00:05:43]} {[%emt 00:01:22]} Qxa3+ {[%clk 00:05:01]}
{[%emt 00:00:02]} 23. Qb2 {[%clk 00:04:34]} {[%emt 00:01:13]} Qxc3+ {[%clk
00:04:59]} {[%emt 00:00:08]} 24. Qxc3 {[%clk 00:04:37]} {[%emt 00:00:02]} Bxc3
{[%clk 00:05:02]} {[%emt 00:00:02]} 25. Rdg1 {[%clk 00:03:55]} {[%emt
00:00:48]} Rfe8 {[%clk 00:02:56]} {[%emt 00:02:11]} 26. hxg6 {[%clk 00:03:19]}
{[%emt 00:00:40]} fxg6 {[%clk 00:02:59]} {[%emt 00:00:02]} 27. Rxg6+ {[%clk
00:03:05]} {[%emt 00:00:19]} Kf7 {[%clk 00:03:03]} {[%emt 00:00:01]} 28. Rd6
{[%clk 00:03:08]} {[%emt 00:00:02]} Bg7 {[%clk 00:00:43]} {[%emt 00:02:25]} 29.
Rg1 {[%clk 00:02:04]} {[%emt 00:01:08]} Bf6 {[%clk 00:00:26]} {[%emt 00:00:23]}
30. Rh1 {[%clk 00:01:37]} {[%emt 00:00:32]} Bg7 {[%clk 00:00:26]} {[%emt
00:00:05]} 31. Rd7+ {[%clk 00:01:11]} {[%emt 00:00:31]} Re7 {[%clk 00:00:27]}
{[%emt 00:00:04]} 32. Rxe7+ {[%clk 00:01:15]} {[%emt 00:00:02]} Kxe7 {[%clk
00:00:28]} {[%emt 00:00:03]} 33. Rh7 {[%clk 00:01:18]} {[%emt 00:00:02]} Kf6
{[%clk 00:00:21]} {[%emt 00:00:12]} 34. Be5+ {[%clk 00:01:13]} {[%emt
00:00:10]} Kxe5 {[%clk 00:00:22]} {[%emt 00:00:05]} 35. Rxg7 {[%clk 00:01:16]}
{[%emt 00:00:01]} b6 {[%clk 00:00:21]} {[%emt 00:00:06]} 36. Rg6 {[%clk
00:01:04]} {[%emt 00:00:17]} Rc8 {[%clk 00:00:19]} {[%emt 00:00:08]} 37. Kc2
{[%clk 00:00:58]} {[%emt 00:00:11]} Kf5 {[%clk 00:00:15]} {[%emt 00:00:09]} 38.
Rg7 {[%clk 00:00:54]} {[%emt 00:00:08]} a5 {[%clk 00:00:08]} {[%emt 00:00:12]}
39. bxa5 {[%clk 00:00:57]} {[%emt 00:00:03]} bxa5 {[%emt 00:00:01]} 40. Ra7
{[%clk 00:00:59]} {[%emt 00:00:02]} Ke4 {[%clk 00:00:15]} {[%emt 00:00:02]} 41.
Kd2 {[%clk 00:00:41]} {[%emt 00:00:24]} Rf8 {[%clk 00:00:12]} {[%emt 00:00:08]}
42. Ke2 {[%clk 00:00:41]} {[%emt 00:00:04]} Rb8 {[%clk 00:00:11]} {[%emt
00:00:07]} 43. f3+ {[%clk 00:00:27]} {[%emt 00:00:18]} Ke5 {[%clk 00:00:14]}
{[%emt 00:00:02]} 44. Rxa5+ {[%clk 00:00:31]} {[%emt 00:00:02]} Kd6 {[%clk
00:00:18]} 45. Kd3 {[%clk 00:00:31]} {[%emt 00:00:05]} Rb3+ {[%clk 00:00:20]}
{[%emt 00:00:04]} 46. Ke4 {[%clk 00:00:35]} Rc3 {[%clk 00:00:22]} {[%emt
00:00:03]} 47. Kd4 {[%clk 00:00:37]} {[%emt 00:00:02]} Rc1 {[%clk 00:00:25]}
{[%emt 00:00:02]} 48. f4 {[%emt 00:00:05]} Rd1+ {[%clk 00:00:28]} 49. Ke4
{[%clk 00:00:43]} Rc1 {[%emt 00:00:08]} 50. c5+ {[%emt 00:00:15]} Ke6 {[%emt
00:00:15]} 51. Kd3 {[%clk 00:00:17]} {[%emt 00:00:04]} Rd1+ {[%clk 00:00:35]}
{[%emt 00:00:02]} 52. Ke2 {[%clk 00:00:21]} Rc1 {[%emt 00:00:03]} 53. e4 {[%clk
00:00:24]} Rc3 {[%clk 00:00:40]} {[%emt 00:00:03]} 54. Kd2 {[%clk 00:00:24]}
{[%emt 00:00:04]} Rf3 {[%clk 00:00:35]} {[%emt 00:00:11]} 55. Ra6 {[%clk
00:00:17]} {[%emt 00:00:13]} Rxf4 {[%clk 00:00:32]} {[%emt 00:00:08]} 56. Rxc6+
{[%clk 00:00:14]} {[%emt 00:00:08]} Kd7 {[%clk 00:00:16]} {[%emt 00:00:20]} 57.
Rd6+ {[%clk 00:00:17]} {[%emt 00:00:02]} Kc7 {[%clk 00:00:21]} 58. Kd3 {[%clk
00:00:20]} {[%emt 00:00:02]} Rf1 {[%clk 00:00:22]} {[%emt 00:00:03]} 59. Kd4
{[%clk 00:00:20]} {[%emt 00:00:05]} Rd1+ {[%clk 00:00:24]} {[%emt 00:00:03]} 60.
Ke5 {[%clk 00:00:24]} Rc1 {[%clk 00:00:28]} {[%emt 00:00:01]} 61. Rd5 {[%clk
00:00:25]} {[%emt 00:00:04]} Rf1 {[%clk 00:00:29]} {[%emt 00:00:04]} 62. Ke6
{[%clk 00:00:27]} {[%emt 00:00:03]} Rf8 {[%clk 00:00:31]} {[%emt 00:00:03]} 63.
Ke7 {[%clk 00:00:27]} {[%emt 00:00:06]} Rf4 {[%clk 00:00:33]} {[%emt 00:00:02]}
64. e5 {[%clk 00:00:30]} {[%emt 00:00:03]} Rf5 {[%clk 00:00:35]} {[%emt
00:00:02]} 65. Rd7+ {[%clk 00:00:28]} {[%emt 00:00:07]} Kc6 {[%clk 00:00:39]}
{[%emt 00:00:02]} 66. e6 {[%clk 00:00:32]} Kxc5 {[%clk 00:00:41]} {[%emt
00:00:03]} 67. Ke8 {[%clk 00:00:35]} {[%emt 00:00:01]} Kc6 {[%clk 00:00:42]}
{[%emt 00:00:04]} 68. e7 {[%clk 00:00:34]} {[%emt 00:00:06]} Rf1 {[%emt
00:00:03]} 69. Kd8 {[%clk 00:00:28]} {[%emt 00:00:10]} Ra1 {[%clk 00:00:38]}
{[%emt 00:00:12]} 70. e8=Q {[%clk 00:00:26]} {[%emt 00:00:07]} Ra8+ {[%clk
00:00:42]} {[%emt 00:00:01]} 71. Ke7 {[%clk 00:00:29]} {[%emt 00:00:02]} 1-0



[ePGN "0.1;DGT LiveChess/2.2.6"]

[Event "MČR juniorů a juniorek v rapid šachu 2024"]
[Site "Hotel Fit Fun, Harrachov, Czech Republic"]
[Date "2024.09.21"]
[Round "6.20"]
[White "Dorazilova Kristyna"]
[Black "Hosova Sandra"]
[Result "0-1"]
[TimeControl "20+5"]
[WhiteFideId "23739142"]
[BlackFideId "397717"]
[WhiteElo "1771"]
[BlackElo "1847"]

1. e4 {[%clk 00:20:08]} {[%emt 00:00:02]} c5 {[%clk 00:20:09]} {[%emt
00:00:02]} 2. Nc3 {[%clk 00:20:12]} {[%emt 00:00:01]} Nc6 {[%clk 00:20:12]}
{[%emt 00:00:02]} 3. Bb5 {[%clk 00:20:16]} {[%emt 00:00:01]} g6 {[%clk
00:20:14]} {[%emt 00:00:03]} 4. Bxc6 {[%clk 00:20:19]} {[%emt 00:00:01]} bxc6
{[%clk 00:20:17]} {[%emt 00:00:03]} 5. f4 {[%clk 00:20:24]} Bg7 {[%clk
00:20:18]} {[%emt 00:00:04]} 6. Nf3 {[%clk 00:20:27]} {[%emt 00:00:01]} d6
{[%clk 00:20:05]} {[%emt 00:00:18]} 7. d3 {[%clk 00:20:28]} {[%emt 00:00:04]}
Nf6 {[%clk 00:18:14]} {[%emt 00:01:56]} 8. O-O {[%clk 00:20:30]} {[%emt
00:00:03]} O-O {[%clk 00:18:13]} {[%emt 00:00:06]} 9. Qe1 {[%clk 00:20:32]}
{[%emt 00:00:02]} Nd7 {[%clk 00:15:44]} {[%emt 00:02:35]} 10. Qh4 {[%clk
00:19:41]} {[%emt 00:00:55]} e5 {[%clk 00:15:12]} {[%emt 00:00:38]} 11. Qg3
{[%clk 00:18:29]} {[%emt 00:01:17]} Qe7 {[%clk 00:11:41]} {[%emt 00:03:35]} 12.
f5 {[%clk 00:17:57]} {[%emt 00:00:37]} Nf6 {[%clk 00:11:40]} {[%emt 00:00:06]}
13. Qh4 {[%clk 00:15:35]} {[%emt 00:02:27]} gxf5 {[%clk 00:09:13]} {[%emt
00:02:32]} 14. exf5 {[%clk 00:15:37]} {[%emt 00:00:03]} Bxf5 {[%clk 00:09:12]}
{[%emt 00:00:07]} 15. Bg5 {[%clk 00:15:00]} {[%emt 00:00:41]} Qe6 {[%clk
00:08:45]} {[%emt 00:00:32]} 16. Nd2 {[%clk 00:14:07]} {[%emt 00:00:58]} Nd5
{[%clk 00:07:02]} {[%emt 00:01:48]} 17. Nce4 {[%clk 00:13:03]} {[%emt
00:01:09]} Bxe4 {[%clk 00:04:36]} {[%emt 00:02:31]} 18. Nxe4 {[%clk 00:13:07]}
{[%emt 00:00:02]} f5 {[%clk 00:04:31]} {[%emt 00:00:10]} 19. Nf2 {[%clk
00:11:53]} {[%emt 00:01:18]} Rf7 {[%clk 00:04:13]} {[%emt 00:00:23]} 20. Bd2
{[%clk 00:11:07]} {[%emt 00:00:51]} Rf6 {[%clk 00:03:08]} {[%emt 00:01:11]} 21.
Nh3 {[%clk 00:10:47]} {[%emt 00:00:25]} Qe7 {[%clk 00:01:29]} {[%emt 00:01:44]}
22. Bg5 {[%clk 00:10:49]} {[%emt 00:00:03]} Qf7 {[%clk 00:00:54]} {[%emt
00:00:40]} 23. Bxf6 {[%clk 00:10:22]} {[%emt 00:00:32]} Bxf6 {[%clk 00:00:57]}
{[%emt 00:00:02]} 24. Qg3+ {[%clk 00:10:20]} {[%emt 00:00:06]} Bg7 {[%clk
00:00:53]} {[%emt 00:00:10]} 25. Ng5 {[%clk 00:09:16]} {[%emt 00:01:09]} Qg6
{[%clk 00:00:56]} {[%emt 00:00:02]} 26. Nf3 {[%clk 00:08:38]} {[%emt 00:00:43]}
Qf6 {[%clk 00:00:37]} {[%emt 00:00:24]} 27. Qh4 {[%clk 00:08:26]} {[%emt
00:00:16]} Qg6 {[%clk 00:00:31]} {[%emt 00:00:12]} 28. Qg5 {[%clk 00:08:19]}
{[%emt 00:00:11]} Qf7 {[%clk 00:00:11]} {[%emt 00:00:25]} 29. Nh4 {[%clk
00:08:14]} {[%emt 00:00:09]} f4 {[%clk 00:00:15]} {[%emt 00:00:03]} 30. Nf5
{[%clk 00:08:18]} {[%emt 00:00:01]} Kh8 {[%clk 00:00:08]} {[%emt 00:00:12]} 31.
Nxd6 {[%clk 00:07:27]} {[%emt 00:00:55]} Qe6 {[%clk 00:00:11]} {[%emt
00:00:02]} 32. Ne4 {[%clk 00:07:21]} {[%emt 00:00:12]} Bh6 {[%clk 00:00:12]}
{[%emt 00:00:04]} 33. Qh4 {[%clk 00:07:03]} {[%emt 00:00:22]} Rg8 {[%clk
00:00:16]} {[%emt 00:00:02]} 34. Kh1 {[%clk 00:06:40]} {[%emt 00:00:29]} Ne3
{[%clk 00:00:17]} {[%emt 00:00:04]} 35. Rf2 {[%clk 00:06:43]} Ng4 {[%clk
00:00:18]} {[%emt 00:00:04]} 36. Rff1 {[%clk 00:05:56]} {[%emt 00:00:52]} Ne3
{[%clk 00:00:21]} {[%emt 00:00:02]} 37. Rg1 {[%clk 00:05:52]} {[%emt 00:00:08]}
Bf8 {[%clk 00:00:18]} {[%emt 00:00:08]} 38. Qf6+ {[%clk 00:05:34]} {[%emt
00:00:23]} Qxf6 39. Nxf6 {[%clk 00:05:38]} Rg6 {[%clk 00:00:19]} {[%emt
00:00:08]} 40. Nd7 {[%clk 00:05:40]} {[%emt 00:00:04]} Be7 {[%clk 00:00:15]}
{[%emt 00:00:10]} 41. Nxe5 {[%clk 00:05:32]} {[%emt 00:00:12]} Re6 {[%clk
00:00:14]} {[%emt 00:00:05]} 42. Nc4 {[%clk 00:05:14]} {[%emt 00:00:24]} Nxc2
{[%clk 00:00:17]} {[%emt 00:00:02]} 43. Rgf1 {[%clk 00:05:06]} {[%emt
00:00:12]} Nxa1 {[%clk 00:00:20]} {[%emt 00:00:03]} 44. Rxa1 {[%clk 00:05:00]}
{[%emt 00:00:11]} Re2 {[%clk 00:00:11]} {[%emt 00:00:13]} 45. Rf1 {[%clk
00:04:54]} {[%emt 00:00:12]} Bf6 {[%clk 00:00:09]} {[%emt 00:00:07]} 46. Rb1
{[%clk 00:04:14]} {[%emt 00:00:45]} Kg7 {[%clk 00:00:12]} {[%emt 00:00:02]} 47.
Kg1 {[%clk 00:04:18]} Bd4+ {[%clk 00:00:10]} {[%emt 00:00:07]} 48. Kh1 {[%clk
00:04:12]} {[%emt 00:00:12]} Kf6 {[%clk 00:00:12]} {[%emt 00:00:03]} 49. Rf1
{[%clk 00:03:52]} {[%emt 00:00:25]} Kg5 {[%clk 00:00:14]} {[%emt 00:00:03]} 50.
h4+ {[%clk 00:03:06]} {[%emt 00:00:51]} Kg4 {[%clk 00:00:12]} {[%emt 00:00:07]}
51. Na5 {[%clk 00:01:58]} {[%emt 00:01:13]} Rxb2 {[%clk 00:00:13]} {[%emt
00:00:04]} 52. Nxc6 {[%clk 00:01:59]} {[%emt 00:00:04]} Rxa2 {[%clk 00:00:15]}
{[%emt 00:00:02]} 53. Kh2 {[%clk 00:01:20]} {[%emt 00:00:44]} Be3 {[%clk
00:00:15]} {[%emt 00:00:06]} 54. Ne5+ {[%clk 00:01:17]} {[%emt 00:00:08]} Kxh4
{[%clk 00:00:19]} {[%emt 00:00:01]} 55. Nf3+ {[%clk 00:00:40]} {[%emt
00:00:42]} Kg4 {[%clk 00:00:21]} {[%emt 00:00:02]} 56. Ne5+ {[%clk 00:00:38]}
{[%emt 00:00:08]} Kf5 {[%clk 00:00:23]} {[%emt 00:00:03]} 57. Nc4 {[%clk
00:00:42]} {[%emt 00:00:01]} Ke6 {[%clk 00:00:17]} {[%emt 00:00:11]} 58. Kh3
{[%clk 00:00:39]} {[%emt 00:00:08]} a5 {[%clk 00:00:17]} {[%emt 00:00:05]} 59.
Re1 {[%clk 00:00:30]} {[%emt 00:00:14]} Kd5 {[%clk 00:00:07]} {[%emt 00:00:14]}
60. g3 {[%clk 00:00:12]} {[%emt 00:00:23]} Bf2 {[%clk 00:00:07]} {[%emt
00:00:06]} 61. Re5+ {[%clk 00:00:13]} {[%emt 00:00:04]} Kd4 {[%clk 00:00:11]}
62. Re4+ {[%clk 00:00:17]} {[%emt 00:00:01]} Kxd3 {[%clk 00:00:14]} {[%emt
00:00:02]} 63. Rxf4 {[%clk 00:00:21]} {[%emt 00:00:01]} Bd4 {[%clk 00:00:17]}
{[%emt 00:00:02]} 64. Ne5+ {[%clk 00:00:24]} {[%emt 00:00:02]} Bxe5 {[%clk
00:00:21]} {[%emt 00:00:01]} 65. Rf3+ {[%clk 00:00:27]} {[%emt 00:00:02]} Kd4
{[%clk 00:00:24]} {[%emt 00:00:02]} 66. Rf8 {[%clk 00:00:27]} {[%emt 00:00:05]}
a4 {[%clk 00:00:28]} {[%emt 00:00:02]} 67. Rd8+ {[%clk 00:00:31]} Kc4 {[%clk
00:00:32]} {[%emt 00:00:01]} 68. Re8 {[%clk 00:00:30]} {[%emt 00:00:06]} Bd4
{[%clk 00:00:33]} {[%emt 00:00:04]} 69. Ra8 {[%clk 00:00:28]} {[%emt 00:00:06]}
a3 {[%clk 00:00:37]} {[%emt 00:00:02]} 70. Ra4+ {[%clk 00:00:31]} {[%emt
00:00:02]} Kb3 {[%clk 00:00:38]} {[%emt 00:00:03]} 71. Ra8 {[%clk 00:00:33]}
{[%emt 00:00:03]} Re2 {[%clk 00:00:38]} {[%emt 00:00:05]} 72. Kg4 {[%clk
00:00:26]} {[%emt 00:00:12]} a2 {[%clk 00:00:42]} {[%emt 00:00:02]} 73. Rb8+
{[%clk 00:00:26]} {[%emt 00:00:05]} Kc4 {[%clk 00:00:45]} {[%emt 00:00:02]} 0-1



[ePGN "0.1;DGT LiveChess/2.2.6"]

[Event "MČR juniorů a juniorek v rapid šachu 2024"]
[Site "Hotel Fit Fun, Harrachov, Czech Republic"]
[Date "2024.09.21"]
[Round "6.21"]
[White "Nespora Tatana"]
[Black "Stary Simon"]
[Result "0-1"]
[TimeControl "20+5"]
[WhiteFideId "392286"]
[BlackFideId "23734353"]
[WhiteElo "1697"]
[BlackElo "1866"]

1. e4 {[%clk 00:20:07]} {[%emt 00:00:03]} c5 {[%clk 00:20:10]} 2. Nf3 {[%clk
00:20:09]} {[%emt 00:00:04]} d6 {[%clk 00:20:14]} {[%emt 00:00:01]} 3. d4
{[%clk 00:20:11]} {[%emt 00:00:02]} cxd4 {[%clk 00:20:18]} {[%emt 00:00:02]} 4.
Nxd4 {[%clk 00:20:13]} {[%emt 00:00:02]} Nf6 {[%clk 00:20:22]} {[%emt
00:00:02]} 5. Nc3 {[%clk 00:20:16]} {[%emt 00:00:02]} a6 {[%clk 00:20:26]}
{[%emt 00:00:01]} 6. f3 {[%clk 00:20:16]} {[%emt 00:00:04]} e5 {[%clk
00:20:30]} {[%emt 00:00:01]} 7. Nb3 {[%clk 00:20:07]} {[%emt 00:00:14]} Be6
{[%clk 00:20:34]} {[%emt 00:00:01]} 8. Be3 {[%clk 00:20:07]} {[%emt 00:00:05]}
h5 {[%clk 00:20:38]} {[%emt 00:00:02]} 9. Qd2 {[%clk 00:19:36]} {[%emt
00:00:35]} Be7 {[%clk 00:20:42]} 10. O-O-O {[%clk 00:19:25]} {[%emt 00:00:16]}
Nbd7 {[%clk 00:20:46]} 11. h3 {[%clk 00:19:24]} {[%emt 00:00:07]} h4 {[%clk
00:20:50]} {[%emt 00:00:02]} 12. Bg5 {[%clk 00:18:50]} {[%emt 00:00:38]} b5
{[%clk 00:20:24]} {[%emt 00:00:32]} 13. Bxf6 {[%clk 00:18:12]} {[%emt
00:00:42]} Nxf6 {[%clk 00:20:24]} {[%emt 00:00:05]} 14. Nd5 {[%clk 00:17:59]}
{[%emt 00:00:19]} Nxd5 {[%clk 00:20:23]} {[%emt 00:00:06]} 15. Qe1 {[%clk
00:16:46]} {[%emt 00:01:18]} Nf4 {[%clk 00:20:11]} {[%emt 00:00:18]} 16. g3
{[%clk 00:16:36]} {[%emt 00:00:14]} hxg3 {[%clk 00:20:13]} {[%emt 00:00:03]} 17.
Qxg3 {[%clk 00:16:39]} {[%emt 00:00:02]} g6 {[%clk 00:19:44]} {[%emt 00:00:34]}
18. Nd2 {[%clk 00:16:06]} {[%emt 00:00:38]} Rc8 {[%clk 00:19:34]} {[%emt
00:00:15]} 19. Kb1 {[%clk 00:16:04]} {[%emt 00:00:06]} Qc7 {[%clk 00:19:35]}
{[%emt 00:00:04]} 20. Rc1 {[%clk 00:16:00]} {[%emt 00:00:10]} Qa5 {[%clk
00:19:29]} {[%emt 00:00:11]} 21. Nb3 {[%clk 00:15:54]} {[%emt 00:00:10]} Qb6
{[%clk 00:19:26]} {[%emt 00:00:08]} 22. Nd2 {[%clk 00:15:00]} {[%emt 00:01:00]}
a5 {[%clk 00:19:22]} {[%emt 00:00:09]} 23. c4 {[%clk 00:14:59]} {[%emt
00:00:06]} b4 {[%clk 00:19:13]} {[%emt 00:00:14]} 24. c5 {[%clk 00:14:18]}
{[%emt 00:00:45]} Rxc5 {[%clk 00:18:44]} {[%emt 00:00:34]} 25. Bc4 {[%clk
00:14:05]} {[%emt 00:00:17]} Bxc4 {[%clk 00:18:23]} {[%emt 00:00:27]} 26. Nxc4
{[%clk 00:14:08]} {[%emt 00:00:03]} Qc7 {[%clk 00:18:21]} {[%emt 00:00:06]} 27.
Ne3 {[%clk 00:13:25]} {[%emt 00:00:49]} Rxc1+ {[%clk 00:18:23]} {[%emt
00:00:03]} 28. Rxc1 {[%clk 00:13:28]} {[%emt 00:00:01]} Qxc1+ {[%clk 00:18:24]}
{[%emt 00:00:05]} 29. Kxc1 {[%clk 00:13:27]} {[%emt 00:00:06]} Ne2+ {[%clk
00:18:28]} 0-1



[ePGN "0.1;DGT LiveChess/2.2.6"]

[Event "MČR juniorů a juniorek v rapid šachu 2024"]
[Site "Hotel Fit Fun, Harrachov, Czech Republic"]
[Date "2024.09.21"]
[Round "6.22"]
[White "Ret Adam Josef"]
[Black "Fousek Petr"]
[Result "1-0"]
[TimeControl "20+5"]
[WhiteFideId "384240"]
[BlackFideId "23736003"]
[WhiteElo "2038"]
[BlackElo "1731"]

1. c4 {[%clk 00:20:09]} {[%emt 00:00:01]} Nf6 {[%clk 00:20:07]} {[%emt
00:00:02]} 2. g3 {[%clk 00:20:13]} g6 {[%clk 00:20:10]} {[%emt 00:00:04]} 3.
Bg2 {[%clk 00:20:18]} Bg7 {[%clk 00:20:13]} {[%emt 00:00:02]} 4. d4 {[%clk
00:20:19]} {[%emt 00:00:03]} d6 {[%clk 00:20:17]} {[%emt 00:00:02]} 5. Nc3
{[%clk 00:20:21]} {[%emt 00:00:03]} Nbd7 {[%clk 00:20:20]} {[%emt 00:00:01]} 6.
Nf3 {[%clk 00:20:25]} {[%emt 00:00:02]} O-O {[%clk 00:20:23]} {[%emt 00:00:02]}
7. O-O {[%clk 00:20:28]} {[%emt 00:00:02]} e5 {[%clk 00:20:24]} {[%emt
00:00:04]} 8. e3 {[%clk 00:20:32]} {[%emt 00:00:01]} c6 {[%clk 00:20:26]}
{[%emt 00:00:03]} 9. b3 {[%clk 00:20:36]} Qc7 {[%clk 00:20:28]} {[%emt
00:00:04]} 10. a4 {[%clk 00:20:40]} {[%emt 00:00:01]} Re8 {[%clk 00:20:25]}
{[%emt 00:00:08]} 11. Ba3 {[%clk 00:20:26]} {[%emt 00:00:19]} Nh5 {[%clk
00:20:08]} {[%emt 00:00:22]} 12. Rc1 {[%clk 00:19:43]} {[%emt 00:00:48]} f5
{[%clk 00:19:45]} {[%emt 00:00:28]} 13. dxe5 {[%clk 00:19:09]} {[%emt
00:00:39]} dxe5 {[%clk 00:19:46]} {[%emt 00:00:04]} 14. Qe2 {[%clk 00:17:42]}
{[%emt 00:01:31]} e4 {[%clk 00:19:17]} {[%emt 00:00:35]} 15. Nd4 {[%clk
00:17:00]} {[%emt 00:00:47]} Ne5 {[%clk 00:19:15]} {[%emt 00:00:07]} 16. Rcd1
{[%clk 00:16:39]} {[%emt 00:00:25]} Nd3 {[%clk 00:18:52]} {[%emt 00:00:28]} 17.
f3 {[%clk 00:14:40]} {[%emt 00:02:05]} exf3 {[%clk 00:17:59]} {[%emt 00:00:58]}
18. Bxf3 {[%clk 00:14:15]} {[%emt 00:00:30]} Bxd4 {[%clk 00:17:33]} {[%emt
00:00:31]} 19. Rxd3 {[%clk 00:14:10]} {[%emt 00:00:11]} Bg7 {[%clk 00:16:51]}
{[%emt 00:00:46]} 20. Bxh5 {[%clk 00:13:30]} {[%emt 00:00:44]} gxh5 {[%clk
00:16:53]} {[%emt 00:00:04]} 21. Qxh5 {[%clk 00:13:25]} {[%emt 00:00:09]} Be6
{[%clk 00:16:55]} {[%emt 00:00:04]} 22. Ne2 {[%clk 00:12:57]} {[%emt 00:00:32]}
Bf7 {[%clk 00:16:54]} {[%emt 00:00:06]} 23. Qg5 {[%clk 00:09:34]} {[%emt
00:03:28]} Re4 {[%clk 00:16:11]} {[%emt 00:00:49]} 24. Bd6 {[%clk 00:09:01]}
{[%emt 00:00:38]} Qb6 {[%clk 00:16:05]} {[%emt 00:00:11]} 25. c5 {[%clk
00:08:47]} {[%emt 00:00:20]} Qa6 {[%clk 00:16:04]} {[%emt 00:00:05]} 26. Rfd1
{[%clk 00:07:25]} {[%emt 00:01:26]} Rae8 {[%clk 00:15:42]} {[%emt 00:00:28]} 27.
Nf4 {[%clk 00:06:38]} {[%emt 00:00:52]} Kh8 {[%clk 00:15:14]} {[%emt 00:00:32]}
28. Qxf5 {[%clk 00:06:17]} {[%emt 00:00:27]} Rxe3 {[%clk 00:14:55]} {[%emt
00:00:25]} 29. Rxe3 {[%clk 00:04:57]} {[%emt 00:01:23]} Rxe3 {[%clk 00:14:53]}
{[%emt 00:00:07]} 30. Qxf7 {[%clk 00:05:01]} {[%emt 00:00:02]} h6 {[%clk
00:14:32]} {[%emt 00:00:26]} 31. Bf8 {[%clk 00:04:41]} {[%emt 00:00:25]} Bxf8
{[%clk 00:14:19]} {[%emt 00:00:18]} 32. Qxf8+ {[%clk 00:04:43]} {[%emt
00:00:02]} Kh7 {[%clk 00:14:24]} 33. Rd7+ {[%clk 00:04:45]} {[%emt 00:00:03]}
Re7 {[%clk 00:14:27]} 34. Rxe7# {[%clk 00:04:49]} {[%emt 00:00:02]} 1-0



[ePGN "0.1;DGT LiveChess/2.2.6"]